bitfinex/quotes_SOLUSD_20251115
["timestamp","ask_amount","ask_price","bid_price","bid_amount"]
[1763211844479,1.74114258,140.97,140.94,0.66]
[1763211845180,1.74114258,140.96,140.92,7.75599167]
[1763211845349,1.74114258,140.96,140.92,7.09599167]
[1763211845554,1.74114258,140.96,140.93,0.66]
[1763211847761,1.74114258,140.96,140.94,7.09521782]
[1763211848155,1.74114258,140.97,140.94,7.09521782]
[1763211848663,1.74114258,140.97,140.94,7.75521782]
[1763211849079,2.35114258,140.97,140.94,0.66]
[1763211849974,1.74114258,140.97,140.94,0.66]
[1763211850583,1.74114258,140.97,140.94,7.75517869]
[1763211851990,1.74114258,141.01,140.95,0.71]
[1763211852286,2.35114258,141.01,140.96,1.74114258]
[1763211852792,2.35114258,141.01,140.97,0.71]
[1763211852997,24.39234258,141.01,140.97,0.71]
[1763211853784,25.00234258,141.01,140.97,0.71]
[1763211854281,1.74114258,141.0,140.97,0.71]
[1763211854488,1.74114258,141.0,140.97,7.80362186]
[1763211855383,1.74114258,141.0,140.97,7.09362186]
[1763211855688,22.6512,141.03,140.98,0.66]
[1763211855689,1.74114258,141.01,140.98,0.66]
[1763211857489,2.35114258,141.01,140.98,0.66]
[1763211858883,2.35114258,141.01,140.98,7.75317574]
[1763211859586,1.74114258,141.01,140.98,7.75317574]
[1763211860190,1.74114258,141.01,140.98,0.66]
[1763211860968,2.35114258,141.01,140.98,0.66]
[1763211863287,1.74114258,141.02,140.98,7.75301174]
[1763211863592,1.74114258,141.02,140.98,9.49415432]
[1763211863896,1.74114258,141.02,140.99,0.66]
[1763211865671,1.74114258,141.0,140.97,0.66]
[1763211865872,1.74114258,140.99,140.96,14.7185499]
[1763211866083,1.74114258,140.99,140.97,0.66]
[1763211867198,1.74114258,140.99,140.97,7.7536705]
[1763211867379,1.74114258,141.01,140.97,7.7536705]
[1763211867583,1.74114258,141.01,140.98,0.66]
[1763211868292,22.6512,141.04,140.99,7.09270161]
[1763211868491,1.74114258,141.03,140.99,7.09270161]
[1763211868697,1.74114258,141.03,141.0,0.66]
[1763211868901,2.72115504,141.03,141.0,0.66]
[1763211871507,2.72115504,141.03,141.0,7.75197328]
[1763211872488,2.72115504,141.03,141.0,0.66]
[1763211873507,2.72115504,141.03,141.0,7.75192146]
[1763211873985,2.72115504,141.03,141.01,0.66]
[1763211875510,2.72115504,141.03,141.01,7.75157853]
[1763211876283,2.72115504,141.03,141.01,7.09157853]
[1763211876487,2.72115504,141.03,141.02,0.66]
[1763211876690,2.72115504,141.04,141.02,0.66]
[1763211877197,2.72115504,141.04,141.01,7.75157853]
[1763211878883,25.37235504,141.05,141.02,0.66]
[1763211880287,0.61,141.07,141.02,0.66]
[1763211880288,2.72115504,141.06,141.02,0.66]
[1763211880596,25.37235504,141.07,141.02,64.78115504]
[1763211880920,2.72115504,141.08,141.04,7.09018718]
[1763211881226,2.72115504,141.08,141.05,0.66]
[1763211882924,2.72115504,141.07,141.05,0.66]
[1763211883527,2.72115504,141.06,141.05,0.66]
[1763211883715,2.72115504,141.06,141.02,68.49108098]
[1763211883921,3.33115504,141.06,141.02,7.09108098]
[1763211884097,2.72115504,141.04,141.03,0.7]
[1763211884528,2.72115504,141.04,141.02,7.79108098]
[1763211885221,2.72115504,141.04,141.03,0.7]
[1763211885426,2.72115504,141.05,141.03,0.7]
[1763211885602,2.72115504,141.06,141.03,7.79067459]
[1763211886125,2.72115504,141.06,141.04,0.7]
[1763211886499,0.61,141.08,141.04,0.7]
[1763211886808,2.72115504,141.06,141.03,9.93208819]
[1763211887006,2.72115504,141.05,141.03,7.79067459]
[1763211887524,2.72115504,141.05,141.04,0.7]
[1763211888221,2.72115504,141.06,141.04,0.7]
[1763211889726,2.72115504,141.06,141.04,7.7900707]
[1763211891430,2.72115504,141.07,141.05,0.7]
[1763211891731,2.72115504,141.07,141.05,7.78960834]
[1763211892025,2.72115504,141.08,141.05,7.78960834]
[1763211892229,2.72115504,141.08,141.06,0.7]
[1763211892526,2.92115504,141.09,141.06,0.7]
[1763211893620,2.92115504,141.09,141.07,7.08867937]
[1763211894224,0.2,141.09,141.07,7.08867937]
[1763211894428,0.2,141.09,141.08,0.7]
[1763211894652,0.2,141.09,141.08,3.42115504]
[1763211894938,0.2,141.12,141.08,3.42115504]
[1763211895120,0.2,141.12,141.1,2.72115504]
[1763211895528,0.2,141.12,141.11,10.50782501]
[1763211895918,0.2,141.12,141.11,13.3476248]
[1763211896628,0.2,141.12,141.11,10.62646976]
[1763211896806,0.2,141.12,141.11,13.3476248]
[1763211899530,0.2,141.12,141.11,10.62646976]
[1763211899832,0.2,141.12,141.11,13.3476248]
[1763211900144,0.2,141.12,141.11,10.62646976]
[1763211900331,0.2,141.12,141.11,13.3476248]
[1763211901538,0.2,141.12,141.11,74.7476248]
[1763211901853,0.2,141.12,141.11,64.23979979]
[1763211902052,3.62115504,141.12,141.11,61.4]
[1763211902342,2.92115504,141.12,141.11,61.4]
[1763211902719,0.2,141.12,141.11,61.4]
[1763211903120,0.2,141.12,141.11,69.18666997]
[1763211903537,0.2,141.12,141.11,71.90782501]
[1763211903738,0.2,141.12,141.11,69.18666997]
[1763211903937,0.2,141.12,141.11,31.80481148]
[1763211905041,0.2,141.12,141.11,29.08365644]
[1763211905228,0.2,141.12,141.09,69.18731954]
[1763211905628,0.2,141.12,141.09,72.02752261]
[1763211906118,3.62115504,141.12,141.09,64.24020307]
[1763211906322,3.42115504,141.11,141.08,7.08786569]
[1763211906544,3.42115504,141.11,141.08,7.78786569]
[1763211906753,2.72115504,141.11,141.08,7.78786569]
[1763211907122,0.9,141.12,141.09,0.7]
[1763211907123,2.92115504,141.12,141.09,0.7]
[1763211907747,0.2,141.12,141.09,3.42115504]
[1763211907950,0.2,141.12,141.09,22.00001065]
[1763211908254,3.62115504,141.12,141.08,7.08786569]
[1763211908421,2.72115504,141.11,141.08,10.62827044]
[1763211909746,3.62115504,141.12,141.08,10.62827044]
[1763211910247,3.62115504,141.12,141.08,9.92827044]
[1763211910428,3.62115504,141.12,141.09,0.7]
[1763211910429,2.92115504,141.12,141.09,0.7]
[1763211911024,0.2,141.12,141.09,0.7]
[1763211911224,2.92115504,141.12,141.09,0.7]
[1763211911446,2.92115504,141.12,141.09,7.78750547]
[1763211911751,2.92115504,141.12,141.09,0.67]
[1763211911752,3.58115504,141.12,141.09,0.67]
[1763211913451,3.58115504,141.12,141.09,7.75754377]
[1763211913933,3.58115504,141.12,141.08,9.92855941]
[1763211914138,3.58115504,141.12,141.08,10.58855941]
[1763211914636,3.58115504,141.12,141.06,84.0512]
[1763211914637,3.39115504,141.11,141.06,86.77235504]
[1763211914844,3.39115504,141.11,141.07,7.748621]
[1763211915358,3.39115504,141.11,141.08,0.66]
[1763211916552,3.39115504,141.11,141.07,69.148621]
[1763211917141,0.2,141.12,141.08,0.66]
[1763211917448,3.59115504,141.12,141.09,7.08767453]
[1763211917941,3.59115504,141.12,141.09,7.74767453]
[1763211918343,2.92115504,141.12,141.09,7.74767453]
[1763211918642,3.59115504,141.12,141.09,7.74767453]
[1763211918842,2.92115504,141.12,141.08,21.96303568]
[1763211919043,3.59115504,141.12,141.08,7.74812915]
[1763211919346,3.59115504,141.12,141.08,7.08812915]
[1763211919548,3.59115504,141.12,141.08,7.74812915]
[1763211919858,3.59115504,141.12,141.08,7.08812915]
[1763211920180,3.59115504,141.12,141.08,7.74812915]
[1763211920334,0.67,141.11,141.08,7.74812915]
[1763211920537,3.39115504,141.11,141.08,7.74812915]
[1763211921130,0.67,141.1,141.07,61.4]
[1763211921330,0.67,141.1,141.07,69.14857305]
[1763211921538,2.72115504,141.08,141.02,0.66]
[1763211921838,2.72115504,141.06,141.02,7.75095919]
[1763211922344,2.72115504,141.06,141.03,0.66]
[1763211922939,3.39115504,141.07,141.03,0.66]
[1763211923141,2.72115504,141.07,141.03,3.38115504]
[1763211923438,2.72115504,141.07,141.04,0.66]
[1763211924062,3.39115504,141.06,141.03,7.09068328]
[1763211924257,3.39115504,141.06,141.02,7.75110546]
[1763211924554,3.39115504,141.06,141.02,0.66]
[1763211925068,2.72115504,141.05,141.02,0.66]
[1763211925545,2.72115504,141.07,141.02,3.38115504]
[1763211925937,3.39115504,141.07,141.03,7.75068992]
[1763211926166,3.39115504,141.07,141.04,0.66]
[1763211926542,3.39115504,141.06,141.01,13.3142668]
[1763211926853,2.72115504,141.05,141.01,10.59311176]
[1763211927154,2.72115504,141.05,141.02,0.66]
[1763211928869,2.72115504,141.05,141.02,7.75115575]
[1763211930766,2.72115504,141.05,141.02,69.15115575]
[1763211930945,1.74105802,141.06,141.02,68.49115575]
[1763211931260,1.74105802,141.06,141.03,0.66]
[1763211931461,1.74105802,141.07,141.03,0.66]
[1763211931656,25.06225802,141.08,141.03,0.66]
[1763211931864,25.06225802,141.08,141.03,62.06]
[1763211932254,24.39225802,141.08,141.03,61.4]
[1763211932452,1.74105802,141.06,141.03,62.06]
[1763211933067,2.41105802,141.06,141.03,61.4]
[1763211933476,2.41105802,141.06,141.03,62.06]
[1763211933650,1.74105802,141.05,141.03,61.4]
[1763211933962,1.74105802,141.05,141.02,68.49090099]
[1763211934275,1.74105802,141.05,141.03,0.66]
[1763211934776,1.74105802,141.06,141.03,7.75059234]
[1763211935084,1.74105802,141.07,141.03,7.75059234]
[1763211935368,1.74105802,141.07,141.04,0.66]
[1763211935871,2.41105802,141.07,141.04,0.66]
[1763211936068,1.74105802,141.06,141.04,0.66]
[1763211938673,2.41105802,141.07,141.04,0.66]
[1763211940182,1.74105802,141.06,141.04,0.66]
[1763211940474,1.74105802,141.06,141.03,62.06]
[1763211940773,1.74105802,141.06,141.03,61.4]
[1763211940976,1.74105802,141.06,141.03,62.06]
[1763211941563,2.41105802,141.05,141.03,61.4]
[1763211942468,1.74105802,141.05,141.03,62.06]
[1763211942647,1.74105802,141.06,141.04,0.66]
[1763211942856,1.74105802,141.07,141.04,0.66]
[1763211943047,2.40105802,141.07,141.04,0.66]
[1763211943679,1.74105802,141.06,141.04,0.66]
[1763211943877,1.74105802,141.06,141.03,69.150683]
[1763211944371,1.74105802,141.06,141.04,0.66]
[1763211944878,0.66,141.07,141.04,7.75015288]
[1763211944879,1.74105802,141.07,141.04,7.75015288]
[1763211945082,1.74105802,141.07,141.05,0.66]
[1763211945477,1.74105802,141.07,141.05,62.06]
[1763211945679,1.74105802,141.07,141.05,61.4]
[1763211946084,1.74105802,141.07,141.05,62.06]
[1763211946659,1.74105802,141.07,141.05,61.4]
[1763211946874,2.40105802,141.06,141.05,61.4]
[1763211948095,2.40105802,141.06,140.99,0.66]
[1763211948096,4.14211604,141.06,140.99,0.66]
[1763211948266,1.74105802,141.02,140.99,0.66]
[1763211948467,22.6512,141.03,140.97,7.75354933]
[1763211948468,1.74105802,141.01,140.97,7.75354933]
[1763211948881,1.74105802,141.01,140.98,0.66]
[1763211949186,2.40105802,141.02,140.98,0.66]
[1763211950573,2.40105802,141.02,140.98,7.75282009]
[1763211950772,2.40105802,141.02,140.99,0.66]
[1763211951682,1.74105802,141.02,140.99,0.66]
[1763211952263,1.74105802,141.02,140.99,7.75261918]
[1763211952592,24.39225802,141.03,140.99,7.75261918]
[1763211952783,24.39225802,141.03,141.0,0.66]
[1763211953172,0.66,141.07,141.01,1.74105802]
[1763211953483,1.74105802,141.06,141.02,0.66]
[1763211953882,1.74105802,141.07,141.03,7.09068992]
[1763211954083,24.39225802,141.07,141.03,7.09068992]
[1763211954392,24.39225802,141.07,141.04,0.66]
[1763211955268,1.74105802,141.06,141.04,0.66]
[1763211956271,2.40105802,141.05,141.01,7.75145223]
[1763211956482,1.74105802,141.04,141.01,7.75145223]
[1763211958292,1.74105802,141.05,141.02,0.66]
[1763211959390,24.39225802,141.07,141.02,2.40105802]
[1763211959784,24.39225802,141.07,141.03,0.66]
[1763211960095,1.74105802,141.07,141.04,7.09018718]
[1763211960295,1.74105802,141.07,141.04,68.49018718]
[1763211960476,1.74105802,141.07,141.05,0.66]
[1763211960986,1.74105802,141.08,141.05,62.06]
[1763211961188,1.74105802,141.09,141.05,69.14967302]
[1763211961496,1.74105802,141.09,141.06,0.66]
[1763211961687,24.39225802,141.1,141.06,0.66]
[1763211961994,1.74105802,141.1,141.06,0.66]
[1763211962893,1.94105802,141.12,141.07,1.74105802]
[1763211963088,0.2,141.12,141.08,8.82923494]
[1763211963388,0.2,141.12,141.09,0.66]
[1763211964409,1.94105802,141.12,141.09,0.66]
[1763211964579,1.74105802,141.11,141.07,7.08844705]
[1763211964888,1.74105802,141.11,141.08,0.66]
[1763211965099,1.74105802,141.11,141.08,7.74796807]
[1763211965495,1.74105802,141.11,141.09,0.66]
[1763211966799,1.74105802,141.11,141.07,7.08847811]
[1763211966974,2.40105802,141.1,141.06,61.4]
[1763211967297,2.40105802,141.1,141.07,0.66]
[1763211967999,2.40105802,141.1,141.05,8.83055414]
[1763211968196,2.40105802,141.1,141.06,0.66]
[1763211969002,1.74105802,141.1,141.06,7.74876431]
[1763211970889,1.74105802,141.1,141.07,0.66]
[1763211971798,1.74105802,141.1,141.07,62.06]
[1763211974600,1.74105802,141.1,141.07,69.1485639]
[1763211974797,1.74105802,141.1,141.08,0.69]
[1763211975104,22.8512,141.12,141.08,0.69]
[1763211975301,1.94105802,141.12,141.08,0.69]
[1763211976102,1.94105802,141.12,141.08,7.7777324]
[1763211976302,1.94105802,141.12,141.09,0.69]
[1763211976484,1.94105802,141.12,141.09,62.09]
[1763211976677,2.62105802,141.12,141.09,62.09]
[1763211976881,2.42105802,141.11,141.09,61.4]
[1763211977199,1.74105802,141.11,141.09,61.4]
[1763211977580,2.42105802,141.11,141.09,61.4]
[1763211979387,1.94105802,141.12,141.09,61.4]
[1763211979602,2.62105802,141.12,141.09,61.4]
[1763211983697,2.62105802,141.12,141.09,62.09]
[1763211984983,1.94105802,141.12,141.09,61.4]
[1763211985184,1.94105802,141.12,141.1,0.69]
[1763211985799,1.94105802,141.12,141.09,61.4]
[1763211986008,1.94105802,141.12,141.09,62.09]
[1763211986206,1.94105802,141.12,141.09,61.4]
[1763211986401,2.42105802,141.11,141.09,61.4]
[1763211986711,1.74105802,141.11,141.06,1.74105802]
[1763211986908,1.74105802,141.08,141.05,0.69]
[1763211988016,1.74105802,141.08,141.03,62.09]
[1763211988017,1.74105802,141.06,141.03,62.09]
[1763211988223,1.74105802,141.06,141.04,0.69]
[1763211988712,0.68,141.08,141.04,0.69]
[1763211988713,1.74105802,141.08,141.04,0.69]
[1763211989200,1.74105802,141.08,141.05,7.0896845]
[1763211989509,1.74105802,141.08,141.04,0.69]
[1763211989699,1.74105802,141.08,141.04,7.78009828]
[1763211990223,1.74105802,141.07,141.05,0.69]
[1763211991002,2.71969768,141.08,141.05,0.69]
[1763211991289,2.71969768,141.09,141.05,7.77922282]
[1763211991704,2.71969768,141.09,141.06,0.69]
[1763211991925,0.2,141.12,141.06,64.80969768]
[1763211992102,0.2,141.12,141.07,2.71969768]
[1763211992287,0.2,141.12,141.07,3.40969768]
[1763211992615,0.2,141.12,141.08,0.69]
[1763211993113,0.2,141.12,141.09,7.08767453]
[1763211993506,0.2,141.12,141.1,0.69]
[1763211994409,2.91969768,141.12,141.1,0.69]
[1763211994615,2.91969768,141.12,141.06,66.96010243]
[1763211994616,2.71969768,141.11,141.09,0.69]
[1763211994794,2.71969768,141.11,141.07,0.69]
[1763211994994,2.91969768,141.12,141.07,0.69]
[1763211995415,2.91969768,141.12,141.07,7.77851153]
[1763211995717,2.71969768,141.11,141.07,7.77851153]
[1763211995917,2.71969768,141.11,141.08,0.69]
[1763211996916,2.91969768,141.12,141.08,0.69]
[1763211997805,2.91969768,141.12,141.08,7.77796566]
[1763211998118,2.91969768,141.12,141.08,69.17796566]
[1763211998321,2.91969768,141.12,141.09,0.69]
[1763211999323,0.2,141.12,141.09,0.69]
[1763211999518,0.2,141.12,141.09,7.77748506]
[1763212000034,0.2,141.12,141.1,3.40969768]
[1763212000210,0.2,141.16,141.11,3.40969768]
[1763212000398,0.2,141.16,141.12,3.40969768]
[1763212000823,0.2,141.16,141.13,0.69]
[1763212002017,0.2,141.16,141.13,7.77520152]
[1763212002520,0.2,141.16,141.14,0.69]
[1763212002902,0.2,141.16,141.14,3.40969768]
[1763212003405,0.2,141.16,141.15,0.71]
[1763212004202,0.2,141.16,141.15,10.51435938]
[1763212005305,0.2,141.16,141.15,71.91435938]
[1763212006030,0.2,141.16,141.15,74.83405706]
[1763212006498,0.2,141.16,141.15,84.62288475]
[1763212007733,0.2,141.16,141.15,74.83405706]
[1763212015833,0.2,141.19,141.16,61.2]
[1763212016331,0.2,141.19,141.17,0.71]
[1763212018732,0.2,141.19,141.16,68.2836682]
[1763212018935,0.88,141.19,141.16,68.9936682]
[1763212021928,0.68,141.18,141.16,61.2]
[1763212022243,0.2,141.19,141.16,68.28404604]
[1763212022424,0.2,141.19,141.17,3.42969768]
[1763212022825,0.2,141.19,141.18,0.71]
[1763212023350,0.2,141.19,141.18,3.42969768]
[1763212023726,0.2,141.19,141.18,10.51285393]
[1763212024029,0.2,141.19,141.18,0.71]
[1763212025047,3.59969768,141.19,141.16,61.2]
[1763212025268,3.59969768,141.19,141.16,61.91]
[1763212025740,3.59969768,141.19,141.16,64.74838921]
[1763212025943,3.59969768,141.19,141.16,61.91]
[1763212026334,3.39969768,141.18,141.16,61.2]
[1763212026838,3.59969768,141.19,141.16,61.2]
[1763212027138,0.2,141.19,141.17,0.71]
[1763212027815,0.2,141.19,141.17,7.79331565]
[1763212030442,0.2,141.19,141.17,68.99331565]
[1763212031147,0.2,141.19,141.18,0.67]
[1763212031439,0.2,141.19,141.18,3.38969768]
[1763212031623,0.2,141.19,141.18,64.58969768]
[1763212031826,0.2,141.19,141.18,71.67285393]
[1763212032348,0.2,141.19,141.18,74.51084037]
[1763212034143,0.2,141.19,141.18,77.23053805]
[1763212034340,0.2,141.21,141.2,60.8]
[1763212034547,0.2,141.21,141.2,64.23969768]
[1763212034824,0.2,141.22,141.21,32.44002769]
[1763212035046,0.2,141.22,141.21,35.87972537]
[1763212035627,0.2,141.22,141.21,38.7167054]
[1763212035950,0.2,141.22,141.21,45.79835684]
[1763212037035,0.2,141.22,141.21,43.07865916]
[1763212037238,0.2,141.22,141.21,45.79835684]
[1763212037747,0.2,141.22,141.21,36.00952915]
[1763212038265,0.2,141.22,141.21,9.91863147]
[1763212038429,0.2,141.22,141.2,71.32177473]
[1763212038761,0.2,141.22,141.2,2.83758379]
[1763212038932,0.87,141.22,141.19,60.8]
[1763212039126,0.87,141.22,141.19,61.52]
[1763212039127,3.58969768,141.22,141.19,61.52]
[1763212039425,0.87,141.22,141.19,61.52]
[1763212039750,0.2,141.22,141.2,0.72]
[1763212039949,0.67,141.29,141.25,22.6512]
[1763212040152,0.87,141.31,141.26,9.79884251]
[1763212040450,3.58969768,141.31,141.26,10.51884251]
[1763212040630,3.38969768,141.3,141.26,7.79914483]
[1763212041139,2.71969768,141.28,141.25,60.4]
[1763212041351,3.38969768,141.29,141.25,60.4]
[1763212041534,3.38969768,141.29,141.25,63.11969768]
[1763212041738,0.2,141.31,141.25,63.11969768]
[1763212041739,3.38969768,141.3,141.26,0.72]
[1763212041938,0.67,141.3,141.26,3.43969768]
[1763212042143,0.67,141.3,141.26,10.51837862]
[1763212043253,3.38969768,141.3,141.26,70.91837862]
[1763212043561,0.67,141.3,141.27,0.72]
[1763212044668,3.38969768,141.3,141.27,0.72]
[1763212044837,2.91969768,141.31,141.27,10.51812933]
[1763212045032,3.58969768,141.31,141.27,10.51812933]
[1763212045348,3.58969768,141.31,141.27,9.79812933]
[1763212045549,0.2,141.31,141.28,0.72]
[1763212045729,0.2,141.31,141.28,61.12]
[1763212045933,0.87,141.31,141.28,61.12]
[1763212046445,0.2,141.31,141.28,68.19796939]
[1763212046650,0.2,141.31,141.29,0.72]
[1763212046866,0.87,141.31,141.28,61.12]
[1763212047039,3.58969768,141.31,141.28,61.12]
[1763212047853,3.58969768,141.31,141.28,60.4]
[1763212047854,3.38969768,141.3,141.28,60.4]
[1763212048035,3.38969768,141.3,141.25,60.4]
[1763212048036,2.71969768,141.29,141.25,60.4]
[1763212048236,2.71969768,141.28,141.25,60.4]
[1763212048533,2.71969768,141.26,141.23,60.4]
[1763212048733,2.71969768,141.24,141.23,60.4]
[1763212048955,2.71969768,141.24,141.2,3.55758379]
[1763212049162,2.71969768,141.22,141.18,7.80271837]
[1763212049538,2.71969768,141.22,141.19,0.72]
[1763212050557,2.71969768,141.23,141.19,7.80229146]
[1763212050950,1.73674045,141.23,141.2,0.72]
[1763212051257,1.73674045,141.21,141.16,23.3712]
[1763212051447,1.73674045,141.19,141.16,7.80394172]
[1763212051648,23.3212,141.21,141.15,7.08446459]
[1763212051836,1.73674045,141.2,141.15,9.54120504]
[1763212052038,1.73674045,141.2,141.16,0.72]
[1763212052339,1.73674045,141.22,141.17,1.73674045]
[1763212052541,1.73674045,141.24,141.19,1.73674045]
[1763212052745,1.73674045,141.24,141.2,2.45674045]
[1763212053053,2.40674045,141.25,141.2,2.45674045]
[1763212053566,0.67,141.27,141.22,1.73674045]
[1763212053768,1.73674045,141.26,141.22,1.73674045]
[1763212053973,1.73674045,141.26,141.23,0.72]
[1763212054256,2.40674045,141.26,141.23,61.12]
[1763212054654,2.40674045,141.26,141.23,68.20061775]
[1763212054862,4.88900298,141.26,141.23,68.20061775]
[1763212055054,0.67,141.26,141.23,68.20061775]
[1763212055374,4.21900298,141.24,141.23,60.4]
[1763212055669,4.88900298,141.25,141.23,60.4]
[1763212055846,0.67,141.24,141.23,60.4]
[1763212056738,4.21900298,141.25,141.23,60.4]
[1763212056739,4.88900298,141.27,141.23,61.12]
[1763212056938,4.88900298,141.27,141.23,65.33900298]
[1763212057447,0.67,141.26,141.23,65.33900298]
[1763212058365,0.67,141.26,141.23,72.4195637]
[1763212059474,0.67,141.28,141.25,4.21900298]
[1763212059647,0.67,141.28,141.25,4.93900298]
[1763212060352,4.21900298,141.29,141.25,4.93900298]
[1763212060563,4.88900298,141.29,141.25,4.93900298]
[1763212061066,0.67,141.29,141.25,4.93900298]
[1763212061246,4.88900298,141.29,141.25,4.93900298]
[1763212061572,4.88900298,141.29,141.26,0.72]
[1763212061768,4.21900298,141.3,141.26,65.33900298]
[1763212061972,5.08900298,141.31,141.27,4.21900298]
[1763212062160,0.87,141.31,141.27,4.93900298]
[1763212062371,0.87,141.31,141.28,0.72]
[1763212062747,0.87,141.31,141.28,60.4]
[1763212063646,5.08900298,141.31,141.28,67.47811421]
[1763212063843,5.08900298,141.31,141.28,60.4]
[1763212064564,4.41900298,141.31,141.28,60.4]
[1763212064768,4.93900298,141.3,141.28,60.4]
[1763212065065,4.21900298,141.29,141.28,60.4]
[1763212065371,4.93900298,141.29,141.28,60.4]
[1763212065871,0.72,141.29,141.28,60.4]
[1763212066065,4.93900298,141.29,141.28,60.4]
[1763212066252,4.41900298,141.31,141.28,60.4]
[1763212067265,4.93900298,141.3,141.28,60.4]
[1763212067967,0.72,141.29,141.28,60.4]
[1763212068171,4.93900298,141.29,141.28,60.4]
[1763212070981,0.2,141.31,141.28,60.4]
[1763212071150,4.21900298,141.3,141.28,60.4]
[1763212071668,4.41900298,141.31,141.28,67.47813929]
[1763212072262,4.41900298,141.31,141.28,60.4]
[1763212073458,4.21900298,141.3,141.28,60.4]
[1763212074072,4.93900298,141.3,141.28,60.4]
[1763212075059,4.21900298,141.3,141.28,60.4]
[1763212075978,4.93900298,141.3,141.28,60.4]
[1763212076163,4.93900298,141.29,141.28,60.4]
[1763212076871,1.7348659,141.3,141.29,0.55051347]
[1763212077069,1.7348659,141.31,141.3,60.4]
[1763212077378,1.7348659,141.32,141.3,60.4]
[1763212078667,1.7348659,141.31,141.3,60.4]
[1763212078882,1.7348659,141.32,141.3,60.4]
[1763212080671,9.78882769,141.38,141.32,0.55051347]
[1763212080872,1.7348659,141.34,141.32,60.95051347]
[1763212081280,22.6512,141.35,141.32,60.95051347]
[1763212081594,24.3860659,141.35,141.32,60.95051347]
[1763212081962,9.78882769,141.4,141.32,60.95051347]
[1763212082163,0.2,141.41,141.36,0.55051347]
[1763212082487,1.7348659,141.4,141.38,0.55051347]
[1763212083188,22.8512,141.41,141.38,60.4]
[1763212083389,1.9348659,141.41,141.38,60.95051347]
[1763212083580,0.2,141.41,141.38,0.55051347]
[1763212083886,0.2,141.41,141.4,0.55051347]
[1763212084085,1.7348659,141.42,141.4,0.55051347]
[1763212084676,1.7348659,141.43,141.4,0.55051347]
[1763212085787,1.7348659,141.41,141.4,21.70794914]
[1763212085965,22.6512,141.45,141.4,21.70794914]
[1763212086288,1.7348659,141.41,141.38,0.55051347]
[1763212086463,1.7348659,141.39,141.38,0.55051347]
[1763212086664,1.7348659,141.4,141.38,0.55051347]
[1763212086992,1.7348659,141.41,141.38,0.55051347]
[1763212087289,1.7348659,141.41,141.39,0.55051347]
[1763212087467,1.7348659,141.4,141.39,0.55051347]
[1763212088296,1.7348659,141.41,141.4,0.55051347]
[1763212089494,1.7348659,141.42,141.4,0.55051347]
[1763212090780,1.7348659,141.43,141.4,1.23051347]
[1763212091296,1.7348659,141.43,141.4,60.95051347]
[1763212091493,1.7348659,141.42,141.4,60.95051347]
[1763212092306,1.7348659,141.41,141.4,60.95051347]
[1763212093907,1.7348659,141.41,141.4,60.4]
[1763212094982,1.7348659,141.41,141.4,60.95051347]
[1763212095679,1.7348659,141.41,141.4,60.4]
[1763212095901,1.7348659,141.41,141.4,60.95051347]
[1763212098700,1.7348659,141.42,141.4,60.95051347]
[1763212098879,1.7348659,141.43,141.4,61.61051347]
[1763212099380,23.3412,141.44,141.4,60.95051347]
[1763212099381,1.7348659,141.42,141.4,60.95051347]
[1763212099580,1.7348659,141.41,141.4,60.4]
[1763212099780,1.7348659,141.41,141.4,60.95051347]
[1763212100320,1.7348659,141.41,141.4,60.4]
[1763212100508,1.7348659,141.41,141.4,60.95051347]
[1763212101227,1.7348659,141.42,141.4,60.95051347]
[1763212101502,1.7348659,141.42,141.41,0.66]
[1763212101678,1.7348659,141.43,141.41,61.06]
[1763212104319,24.3860659,141.44,141.41,60.4]
[1763212105211,25.0760659,141.44,141.41,60.4]
[1763212105512,1.7348659,141.43,141.41,60.4]
[1763212106508,2.4248659,141.43,141.41,60.4]